bitfinex/quotes_ETHUSD_20250415
["timestamp","ask_amount","ask_price","bid_price","bid_amount"]
[1744743706439,6.21813207,1608.2,1608.1,0.02]
[1744743715230,7.11313207,1608.2,1608.1,0.02]
[1744743715447,9.06803341,1608.2,1608.1,0.02]
[1744743720431,12.06803341,1608.2,1608.1,0.02]
[1744743720734,6.21967906,1607.8,1607.7,0.3986664]
[1744743720957,11.7884326,1607.9,1607.7,0.3986664]
[1744743721156,6.2194326,1607.9,1607.7,0.3986664]
[1744743721358,7.11947569,1608.0,1607.7,4.01089553]
[1744743721359,0.9005,1608.0,1607.7,4.01089553]
[1744743721533,6.21864233,1608.1,1607.8,7.17925013]
[1744743721725,6.21864233,1608.1,1607.8,0.9596]
[1744743722986,6.21864233,1608.1,1607.8,0.9096]
[1744743723261,18.96860574,1608.3,1607.9,9.83117382]
[1744743723439,6.21840697,1608.2,1607.9,3.61222913]
[1744743723641,12.4369205,1608.2,1607.9,3.61222913]
[1744743723962,6.21857176,1608.1,1607.9,3.61222913]
[1744743724663,6.21840697,1608.2,1607.9,3.61222913]
[1744743725231,12.43683944,1608.2,1607.9,3.61222913]
[1744743725665,6.2185784,1608.1,1607.9,3.61222913]
[1744743725829,12.43729273,1608.1,1607.9,3.61222913]
[1744743726026,6.2189701,1608.0,1607.8,0.9096]
[1744743726230,12.43730301,1608.1,1607.8,0.9096]
[1744743726430,12.43733414,1608.1,1607.8,0.9096]
[1744743727177,12.43660717,1608.2,1607.8,7.12898481]
[1744743727672,12.436539,1608.2,1607.8,7.12898481]
[1744743728977,6.21822838,1608.2,1607.8,13.34854324]
[1744743729153,6.21822838,1608.2,1607.8,7.12898481]
[1744743730452,6.22853247,1608.1,1607.8,0.9096]
[1744743730777,6.22853247,1608.1,1607.8,7.1292011]
[1744743732485,0.01,1608.1,1607.8,0.9096]
[1744743732785,12.43832472,1608.0,1607.8,0.9096]
[1744743733184,6.21912206,1608.0,1607.7,4.2931664]
[1744743733898,7.19763378,1608.1,1607.7,10.51297891]
[1744743734125,6.22853084,1608.1,1607.8,6.21950959]
[1744743735218,12.44725786,1608.1,1607.8,6.21950959]
[1744743735422,6.22853084,1608.1,1607.8,6.21950959]
[1744743735721,12.44718876,1608.1,1607.8,6.21950959]
[1744743736018,6.22853084,1608.1,1607.8,6.21950959]
[1744743736221,6.22853084,1608.1,1607.8,12.43906738]
[1744743736584,6.22853084,1608.1,1607.9,0.9397]
[1744743738014,0.01,1608.1,1608.0,3.61222913]
[1744743738220,0.01,1608.1,1608.0,14.3208346]
[1744743738716,0.01,1608.1,1608.0,14.79768759]
[1744743739419,0.01,1608.1,1608.0,7.55192913]
[1744743739587,0.01,1608.1,1608.0,4.55192913]
[1744743739793,6.22851874,1608.1,1607.8,0.9677]
[1744743739998,7.77687061,1608.1,1607.8,0.9677]
[1744743740582,1.55835187,1608.1,1607.8,7.18716144]
[1744743740789,7.77689288,1608.1,1607.7,6.61862573]
[1744743740980,6.21890547,1608.0,1607.7,0.3986664]
[1744743741188,12.43819129,1608.0,1607.7,0.3986664]
[1744743741380,13.83765327,1608.0,1607.7,0.3986664]
[1744743741581,7.61855979,1608.0,1607.7,0.3986664]
[1744743741788,1.39965432,1608.0,1607.7,0.3986664]
[1744743741985,6.21967906,1607.8,1607.7,0.3986664]
[1744743742192,7.14517906,1607.8,1607.7,0.3986664]
[1744743743526,6.21948392,1607.9,1607.7,0.3986664]
[1744743743527,0.01,1608.1,1607.7,4.01089553]
[1744743743724,6.22863999,1608.1,1607.9,3.61222913]
[1744743743886,6.22863999,1608.1,1607.8,0.9438]
[1744743744085,6.21901241,1608.0,1607.8,0.9438]
[1744743744319,6.22863999,1608.1,1607.8,0.9438]
[1744743744827,6.21902019,1608.0,1607.8,0.9438]
[1744743745121,0.01,1608.1,1607.8,0.9438]
[1744743745326,6.21914257,1608.0,1607.8,0.9438]
[1744743745527,6.21929224,1607.9,1607.8,0.9438]
[1744743746228,6.21967906,1607.8,1607.7,1.3239664]
[1744743751148,6.21929224,1607.9,1607.7,1.3239664]
[1744743751350,6.21967906,1607.8,1607.7,1.3239664]
[1744743753944,6.21967906,1607.8,1607.7,0.3986664]
[1744743754835,7.46357619,1607.8,1607.7,0.3986664]
[1744743755147,8.41197619,1607.8,1607.7,0.3986664]
[1744743764029,7.46357619,1607.8,1607.7,0.3986664]
[1744743764236,8.37747619,1607.8,1607.7,0.3986664]
[1744743765044,11.37747619,1607.8,1607.7,1e-08]
[1744743765389,17.47747619,1607.8,1607.7,1e-08]
[1744743766240,7.18680099,1607.2,1607.1,0.02]
[1744743767172,9.14984263,1607.2,1607.1,0.02]
[1744743767374,12.07254263,1607.2,1607.1,1e-08]
[1744743768331,14.63954263,1607.2,1607.1,1e-08]
[1744743769283,7.10950099,1607.2,1607.1,1e-08]
[1744743769639,6.22200099,1607.2,1607.1,1e-08]
[1744743769839,6.22180769,1607.3,1607.1,1e-08]
[1744743770568,12.44368173,1607.3,1607.1,1e-08]
[1744743770936,6.22180769,1607.3,1607.1,1e-08]
[1744743771243,7.11027196,1607.7,1607.2,4.57752913]
[1744743771443,6.22076711,1607.6,1607.2,10.79946819]
[1744743771676,6.22076711,1607.6,1607.2,10.79939812]
[1744743771983,6.22062146,1607.6,1607.3,6.22148057]
[1744743772555,12.44126467,1607.6,1607.3,6.22148057]
[1744743772766,12.44126467,1607.6,1607.2,17.02126711]
[1744743773177,6.22086924,1607.5,1607.2,10.79939812]
[1744743773357,6.22086924,1607.5,1607.2,17.02124304]
[1744743773688,6.22086924,1607.5,1607.2,7.18714492]
[1744743773883,6.22086924,1607.5,1607.2,10.79937405]
[1744743774954,6.22086924,1607.5,1607.2,17.02123316]
[1744743775266,6.22062146,1607.6,1607.3,6.22153245]
[1744743775465,6.22011831,1607.7,1607.3,6.22161388]
[1744743775680,6.2204657,1607.6,1607.3,6.22161388]
[1744743776993,6.2205109,1607.6,1607.3,6.22147368]
[1744743777295,12.44113791,1607.6,1607.3,6.22147368]
[1744743777461,6.2205109,1607.6,1607.3,6.22147368]
[1744743777794,12.44117967,1607.6,1607.3,6.22147368]
[1744743778171,0.8819,1607.8,1607.2,10.79941462]
[1744743778358,6.22095229,1607.5,1607.2,10.79941462]
[1744743778559,6.22095229,1607.5,1607.2,17.021294]
[1744743779158,6.22054202,1607.6,1607.2,17.021294]
[1744743779592,12.44122695,1607.6,1607.2,10.79940851]
[1744743779958,6.22054202,1607.6,1607.3,6.22160629]
[1744743780995,6.22054202,1607.6,1607.3,6.22148944]
[1744743781161,6.22054202,1607.6,1607.3,6.22159955]
[1744743782696,12.44128697,1607.6,1607.3,6.22159955]
[1744743784096,6.22139398,1607.4,1607.2,0.9653]
[1744743784301,12.44340136,1607.3,1607.1,1e-08]
[1744743784503,6.22161388,1607.3,1607.1,1e-08]
[1744743785398,12.4428479,1607.4,1607.1,1e-08]
[1744743785603,6.22127681,1607.4,1607.1,6.22230954]
[1744743785800,6.22092869,1607.5,1607.2,6.22195401]
[1744743785982,13.90302124,1607.5,1607.2,6.22195401]
[1744743786184,2.1693287,1607.6,1607.3,0.9014]
[1744743786384,6.221235,1607.4,1607.1,7.12367466]
[1744743786584,6.22093455,1607.5,1607.2,6.22197467]
[1744743787300,12.44193083,1607.5,1607.2,6.22197467]
[1744743787509,6.22093455,1607.5,1607.1,13.34593913]
[1744743788709,12.4421518,1607.5,1607.1,13.34593913]
[1744743789609,6.22139246,1607.4,1607.1,0.90140001]
[1744743789813,12.44294034,1607.4,1607.1,0.90140001]
[1744743790107,6.22178033,1607.3,1607.1,1e-08]
[1744743791475,7.11710099,1607.2,1607.1,1e-08]
[1744743792105,6.22178033,1607.3,1607.1,1e-08]
[1744743792305,12.40795836,1607.3,1607.1,1e-08]
[1744743792695,18.62970894,1607.3,1607.1,1e-08]
[1744743793007,12.40792861,1607.3,1607.1,1e-08]
[1744743793195,12.40781793,1607.3,1607.1,1e-08]
[1744743793511,18.62956185,1607.3,1607.1,1e-08]
[1744743793682,1.86295619,1607.2,1607.1,1e-08]
[1744743794012,9.00525718,1607.2,1607.1,1e-08]
[1744743796613,1.86295619,1607.2,1607.1,1e-08]
[1744743796813,19.54760605,1607.3,1607.1,1e-08]
[1744743796986,6.22200099,1607.2,1607.1,1e-08]
[1744743798401,7.10310099,1607.2,1607.1,1e-08]
[1744743808112,10.10310099,1607.2,1607.1,1e-08]
[1744743809027,10.65310099,1607.2,1607.1,1e-08]
[1744743809229,13.94269691,1607.2,1607.1,1e-08]
[1744743809932,13.39269691,1607.2,1607.1,1e-08]
[1744743811699,13.39269691,1607.2,1606.1,0.4186664]
[1744743811700,6.22587473,1606.2,1606.1,0.4186664]
[1744743813432,7.11647473,1606.2,1606.1,0.4186664]
[1744743813659,11.78766717,1606.3,1606.1,0.4186664]
[1744743813955,6.22587473,1606.2,1606.1,0.4186664]
[1744743816404,8.02722892,1606.2,1606.1,0.4186664]
[1744743817305,6.22587473,1606.2,1606.1,0.4186664]
[1744743819434,7.18087473,1606.2,1606.1,0.4186664]
[1744743821005,6.22587473,1606.2,1606.1,0.4186664]
[1744743825530,7.17957473,1606.2,1606.1,0.4186664]
[1744743826653,6.22587473,1606.2,1606.1,0.4186664]
[1744743826863,8.64979692,1606.2,1606.1,0.4186664]
[1744743830528,9.60459692,1606.2,1606.1,1e-08]
[1744743831038,8.64979692,1606.2,1606.1,1e-08]
[1744743833137,9.53589692,1606.2,1606.1,1e-08]
[1744743833757,15.10089692,1606.2,1606.1,1e-08]
[1744743838988,14.21479692,1606.2,1606.1,1e-08]
[1744743843895,15.17709692,1606.2,1606.1,1e-08]
[1744743846076,14.21479692,1606.2,1606.1,1e-08]
[1744743846463,3.61222913,1606.5,1606.3,6.2254858]
[1744743846464,5.563,1606.5,1606.3,6.2254858]
[1744743846696,5.563,1606.5,1606.2,0.8886]
[1744743846697,11.78795101,1606.5,1606.2,0.8886]
[1744743846896,6.22548714,1606.3,1606.2,0.8886]
[1744743847100,6.22513766,1606.4,1606.2,0.8886]
[1744743847701,12.45116531,1606.3,1606.1,1e-08]
[1744743847890,7.47099126,1606.2,1606.1,1e-08]
[1744743849704,6.22548714,1606.3,1606.1,1e-08]
[1744743849912,6.22587473,1606.2,1606.1,0.96010001]
[1744743850785,7.13527473,1606.2,1606.1,1e-08]
[1744743851182,6.22587473,1606.2,1606.1,1e-08]
[1744743851502,8.09357878,1606.2,1606.1,1e-08]
[1744743851703,9.03277878,1606.2,1606.1,1e-08]
[1744743854082,14.59577878,1606.2,1606.1,1e-08]
[1744743855089,17.57577878,1606.2,1606.1,1e-08]
[1744743858516,23.67577878,1606.2,1606.1,1e-08]
[1744743859983,20.67577878,1606.2,1606.1,1e-08]
[1744743860542,23.67577878,1606.2,1606.1,1e-08]
[1744743863117,24.22577878,1606.2,1606.1,1e-08]
[1744743865014,23.67577878,1606.2,1606.1,1e-08]
[1744743867137,23.67677878,1606.2,1606.1,1e-08]
[1744743867930,6.22781341,1605.7,1605.6,1e-08]
[1744743868110,12.74731341,1605.7,1605.6,1e-08]
[1744743868297,11.78981341,1605.7,1605.6,1e-08]
[1744743869433,11.78981341,1605.7,1605.6,0.93500001]
[1744743869597,6.22781341,1605.7,1605.6,0.93500001]
[1744743870003,11.78954378,1605.8,1605.6,0.93500001]
[1744743870203,6.22635156,1606.1,1605.7,7.19350233]
[1744743870432,6.22686461,1606.0,1605.8,0.9659]
[1744743870635,11.7883399,1606.1,1605.8,0.9659]
[1744743870803,11.7883399,1606.1,1605.9,0.9688]
[1744743871132,6.2263399,1606.1,1605.9,0.9688]
[1744743871434,12.45278862,1606.1,1605.9,0.9688]
[1744743871635,6.22604043,1606.2,1605.9,0.9688]
[1744743871942,6.22642393,1606.1,1605.9,0.9688]
[1744743872734,12.45287118,1606.1,1605.9,0.9688]
[1744743873105,6.22665006,1606.0,1605.9,0.9688]
[1744743875031,6.22642393,1606.1,1605.9,0.9688]
[1744743875236,12.45285208,1606.1,1605.9,0.9688]
[1744743875745,12.45284977,1606.1,1605.9,0.9688]
[1744743876143,12.45286893,1606.1,1605.9,0.9688]
[1744743876321,6.22603647,1606.2,1605.9,0.9688]
[1744743876636,6.22641622,1606.1,1605.9,0.9688]
[1744743877011,12.4528494,1606.1,1605.9,0.9688]
[1744743877454,6.22665006,1606.0,1605.9,0.9688]
[1744743878111,1.24530663,1606.0,1605.7,0.9201]
[1744743878311,6.22742558,1605.8,1605.7,0.9201]
[1744743881224,12.45445828,1605.9,1605.7,0.9201]
[1744743881615,6.22742558,1605.8,1605.7,0.9201]
[1744743882949,12.45449316,1605.9,1605.7,0.9201]
[1744743883122,6.22722375,1605.9,1605.7,0.9201]
[1744743883330,11.787609,1606.3,1605.9,0.914]
[1744743883533,6.22636384,1606.1,1605.9,0.914]
[1744743883718,6.22665006,1606.0,1605.9,0.914]
[1744743885643,6.22636384,1606.1,1605.9,0.914]
[1744743886045,12.45291508,1606.1,1605.9,0.914]
[1744743886251,6.22665006,1606.0,1605.9,0.914]
[1744743889550,7.47195145,1606.0,1605.9,0.914]
[1744743889752,6.22742558,1605.8,1605.7,0.9497]
[1744743890856,12.45513811,1605.8,1605.6,0.89960001]
[1744743891238,6.22742558,1605.8,1605.6,0.89960001]
[1744743891444,12.45500797,1605.8,1605.6,0.89960001]
[1744743891634,12.45426027,1605.9,1605.6,0.89960001]
[1744743892423,6.22703928,1605.9,1605.6,10.74002505]
[1744743892620,12.45431898,1605.9,1605.7,0.9177]
[1744743892824,6.22742558,1605.8,1605.7,0.9177]
[1744743895622,0.9683,1606.2,1605.7,0.9177]
[1744743895828,7.24166847,1606.3,1605.8,6.22739032]
[1744743896155,12.45296814,1606.1,1605.9,0.9312]
[1744743896358,6.22665006,1606.0,1605.9,0.9312]
[1744743897055,12.45361524,1606.0,1605.8,0.9696]
[1744743898354,6.22703779,1605.9,1605.8,0.9696]
[1744743899051,12.4543005,1605.9,1605.7,3.0]
[1744743899257,6.22703779,1605.9,1605.8,0.9696]
[1744743900551,12.45533524,1605.8,1605.7,0.9696]
[1744743900859,6.22781341,1605.7,1605.6,1e-08]
[1744743904066,7.11821341,1605.7,1605.6,1e-08]
[1744743911780,6.22781341,1605.7,1605.6,1e-08]
[1744743916401,12.4552121,1605.8,1605.6,1e-08]
[1744743916601,6.22758991,1605.8,1605.6,1e-08]
[1744743916765,12.45539705,1605.8,1605.6,1e-08]
[1744743917399,6.22781341,1605.7,1605.6,1e-08]
[1744743917608,11.78734181,1606.1,1605.7,0.8764]
[1744743917609,5.561,1606.1,1605.7,0.8764]
[1744743917801,6.2269067,1606.0,1605.7,0.8764]
[1744743917997,12.45392626,1606.0,1605.7,0.8764]
[1744743918198,6.22707135,1605.9,1605.7,0.8764]
[1744743918402,6.2269067,1606.0,1605.9,0.8764]
[1744743918613,4.05837573,1606.2,1605.9,7.10342751]
[1744743918783,4.05837573,1606.2,1606.0,10.82187591]
[1744743919109,4.05837573,1606.2,1606.0,10.75961408]
[1744743919271,4.05837573,1606.2,1606.1,0.9209]
[1744743920100,4.05837573,1606.2,1606.1,7.14716237]
[1744743920608,4.05837573,1606.2,1606.1,10.70416237]
[1744743921811,6.22513081,1606.4,1606.1,16.93042474]
[1744743922111,6.22513081,1606.4,1606.1,10.70416237]
[1744743924218,10.49857573,1606.8,1606.4,6.22486506]
[1744743924515,6.22412298,1606.7,1606.4,3.61222913]
[1744743924808,10.6682333,1606.8,1606.5,0.883]
[1744743924809,4.05837573,1606.8,1606.5,0.883]
[1744743924988,6.22431945,1606.7,1606.5,0.883]
[1744743925189,12.44864146,1606.7,1606.5,0.883]
[1744743925409,6.22431945,1606.7,1606.5,0.883]
[1744743926414,6.2240969,1606.7,1606.5,0.883]
[1744743926912,6.22408356,1606.7,1606.5,0.883]
[1744743927110,6.2247121,1606.5,1606.4,0.883]
[1744743927316,6.22512695,1606.4,1606.3,0.883]
[1744743927715,6.2259158,1606.2,1606.1,0.9608]
[1744743927919,6.22632304,1606.1,1605.9,4.57302913]
[1744743929685,6.22552188,1606.3,1605.9,10.79995073]
[1744743929890,12.45115854,1606.3,1606.0,6.22651723]
[1744743930321,6.22593748,1606.2,1605.9,17.02687308]
[1744743931318,12.45044891,1606.4,1606.2,0.918]
[1744743931525,6.22548714,1606.3,1606.2,0.918]
[1744743931899,12.45133773,1606.3,1606.1,3.61222913]
[1744743933126,6.22587473,1606.2,1606.1,3.61222913]
[1744743933423,6.22587473,1606.2,1606.0,0.918]
[1744743936543,6.22559637,1606.3,1606.0,0.918]
[1744743936766,7.12118961,1606.5,1606.2,6.22576133]
[1744743936895,6.2250996,1606.4,1606.3,0.937]
[1744743937425,7.49280857,1606.5,1606.3,0.937]
[1744743937615,6.22478961,1606.5,1606.3,0.937]
[1744743937797,6.22478961,1606.5,1606.3,4.54922913]
[1744743937997,12.44962871,1606.5,1606.3,4.54922913]
[1744743938215,12.44965103,1606.5,1606.3,4.54922913]
[1744743938421,6.22478961,1606.5,1606.3,4.54922913]
[1744743938632,12.44963493,1606.5,1606.3,4.54922913]
[1744743938831,6.22478961,1606.5,1606.3,4.54922913]
[1744743939010,12.44964189,1606.5,1606.3,4.54922913]
[1744743940023,6.22478961,1606.5,1606.3,4.54922913]
[1744743940225,12.44965954,1606.5,1606.3,4.54922913]
[1744743941029,6.22478961,1606.5,1606.3,4.54922913]
[1744743941231,6.22443092,1606.6,1606.3,17.0000724]
[1744743941544,6.22443092,1606.6,1606.3,10.77459755]
[1744743941913,6.4914,1606.9,1606.3,3.937]
[1744743942112,6.22587473,1606.2,1606.1,0.9487]
[1744743942623,12.45206721,1606.2,1606.0,3.61222913]
[1744743942925,6.22626237,1606.1,1606.0,3.61222913]
[1744743943317,6.22626237,1606.1,1606.0,6.61222913]
[1744743943940,6.22626237,1606.1,1605.9,0.9487]
[1744743944113,6.22742558,1605.8,1605.6,3.61222914]
[1744743944614,6.22781341,1605.7,1605.6,1e-08]
[1744743947951,6.22705806,1605.9,1605.6,10.78656616]
[1744743948130,6.22705806,1605.9,1605.6,10.78671413]
[1744743948328,12.45436227,1605.9,1605.6,10.78671413]
[1744743948528,6.22705806,1605.9,1605.6,10.78671413]
[1744743949141,12.45425898,1605.9,1605.6,4.55852914]
[1744743949454,6.22760576,1605.8,1605.6,4.55852914]
[1744743949750,12.45356918,1606.0,1605.6,4.55852914]
[1744743949921,12.45356191,1606.0,1605.7,6.22777188]
[1744743950121,6.22704949,1605.9,1605.6,4.55852914]
[1744743950320,6.22750196,1605.8,1605.6,4.55852914]
[1744743951336,12.45444135,1605.9,1605.6,4.55852914]
[1744743951648,12.45430689,1605.9,1605.6,10.78671126]
[1744743951839,6.22744804,1605.8,1605.6,4.55852914]
[1744743954066,6.22781341,1605.7,1605.6,1e-08]
[1744743957054,7.13531341,1605.7,1605.6,1e-08]
[1744743958376,10.13531341,1605.7,1605.6,1e-08]
[1744743962985,10.13531341,1605.7,1605.6,1e-08]
[1744743964182,6.22781341,1605.7,1605.6,1e-08]
[1744743964483,11.7821959,1605.9,1605.6,7.18966309]
[1744743964782,12.45514521,1605.8,1605.6,0.96150001]
[1744743964951,6.22781341,1605.7,1605.6,0.96150001]
[1744743965150,6.2275495,1605.8,1605.6,0.96150001]
[1744743965373,6.22781341,1605.7,1605.6,0.96150001]
[1744743965980,6.22781341,1605.7,1605.6,1e-08]
[1744743968286,6.2275495,1605.8,1605.6,1e-08]
[1744743968490,6.2275495,1605.8,1605.7,0.8762]
[1744743969197,12.45433756,1605.9,1605.7,0.8762]
[1744743969494,6.22742558,1605.8,1605.7,0.8762]
[1744743970580,12.45282849,1606.1,1605.7,4.48842913]
[1744743970784,12.45295675,1606.1,1605.7,16.94397065]
[1744743970988,12.45276275,1606.1,1605.8,6.22737329]
[1744743971492,12.45278334,1606.1,1605.8,6.22737329]
[1744743972667,6.22669076,1606.0,1605.7,16.94397065]
[1744743972901,12.45291385,1606.1,1605.8,6.22740751]
[1744743973098,6.22633301,1606.1,1605.8,6.22740751]
[1744743973269,12.45274174,1606.1,1605.8,6.22740751]
[1744743974083,12.45274174,1606.1,1605.9,0.9543]
[1744743974279,7.15764702,1606.6,1606.2,6.22587473]
[1744743974479,1.2712647,1606.6,1606.2,3.61222913]
[1744743974705,10.28166273,1606.9,1606.5,6.22444481]
[1744743974876,10.28166273,1606.9,1606.6,0.89]
[1744743975200,4.05837573,1606.9,1606.6,10.726256]
[1744743975401,4.05837573,1606.9,1606.7,6.22365756]
[1744743975701,4.05837573,1606.9,1606.6,10.72650523]
[1744743975901,10.28169122,1606.9,1606.6,16.95067399]
[1744743976083,10.28169122,1606.9,1606.6,16.95059031]
[1744743976484,4.05837573,1606.9,1606.7,6.22388742]
[1744743976819,12.44578853,1607.0,1606.7,6.22388742]
[1744743977215,6.22281115,1607.0,1606.7,12.44777484]
[1744743977370,12.44582592,1607.0,1606.6,10.72649579]
[1744743977576,6.22320821,1606.9,1606.6,10.72640347]
[1744743977778,6.22320821,1606.9,1606.6,16.95061903]
[1744743979448,12.44595602,1607.0,1606.6,16.95061903]
[1744743981540,6.22281115,1607.0,1606.7,6.22393298]
[1744743982050,12.44574827,1607.0,1606.7,6.22393298]
[1744743982250,6.22316519,1606.9,1606.6,16.95061903]
[1744743983648,6.22316519,1606.9,1606.6,10.72640347]
[1744743985152,6.22316519,1606.9,1606.6,16.95061682]
[1744743985845,6.22281115,1607.0,1606.7,6.22387061]
[1744743986052,12.44575489,1607.0,1606.7,6.22387061]
[1744743986352,12.44575489,1607.0,1606.7,7.02387061]
[1744743986650,12.44575489,1607.0,1606.7,0.8]
[1744743987749,7.17784087,1607.2,1606.8,3.61222913]
[1744743987919,6.4589,1607.4,1606.9,0.8745]
[1744743988124,6.22220751,1607.2,1606.9,7.09754785]
[1744743988323,12.44442012,1607.2,1606.9,7.09754785]
[1744743988734,12.44349316,1607.3,1607.0,6.22276622]
[1744743988935,6.22169878,1607.3,1607.0,9.83499535]
[1744743989324,6.22094782,1607.5,1607.0,3.61222913]
[1744743989657,0.9528,1608.0,1607.7,6.21996784]
[1744743989955,10.16837573,1608.1,1607.5,0.55]
[1744743989956,4.06837573,1608.1,1607.9,9.83124444]
[1744743990153,4.06837573,1608.1,1607.9,3.61222913]
[1744743990457,6.21902255,1608.0,1607.8,0.9577]
[1744743990653,6.21929224,1607.9,1607.7,3.61222913]
[1744743990858,12.43883802,1607.9,1607.7,3.61222913]
[1744743991053,6.21897476,1608.0,1607.7,3.61222913]
[1744743991227,6.22855482,1608.1,1607.7,16.05193857]
[1744743991432,6.21907988,1608.0,1607.7,9.8320305]
[1744743992126,12.43824142,1608.0,1607.7,9.8320305]
[1744743992322,6.21907988,1608.0,1607.7,9.8320305]
[1744743992527,12.43817943,1608.0,1607.7,9.8320305]
[1744743992838,6.21907988,1608.0,1607.7,16.05192687]
[1744743993137,6.22856438,1608.1,1607.8,6.21951854]
[1744743993138,0.01,1608.1,1607.8,6.21951854]
[1744743993961,6.22863736,1608.1,1607.8,6.21951854]
[1744743994260,6.22863736,1608.1,1607.8,0.55]
[1744743994261,0.01,1608.1,1607.8,0.55]
[1744743994439,0.01,1608.1,1607.9,9.83139036]
[1744743994757,0.01,1608.1,1608.0,6.76890547]
[1744743995327,0.01,1608.1,1608.0,9.76890547]
[1744743995941,0.01,1608.1,1608.0,14.3152346]
[1744743996138,0.02,1608.4,1608.3,7.70184544]
[1744743996343,0.02,1608.4,1608.3,11.31407457]
[1744743996939,4.05837573,1609.2,1608.9,6.21533765]
[1744743997147,6.21481784,1609.1,1608.8,10.73893148]
[1744743997348,6.21481784,1609.1,1608.8,3.0]
[1744743997349,12.42971527,1609.1,1608.8,3.0]
[1744743997944,6.21508313,1609.0,1608.6,12.67342618]
[1744743998144,0.897,1609.1,1608.6,6.457]
[1744743998358,6.21510405,1609.0,1608.4,0.911]
[1744743998567,12.43430312,1608.5,1608.2,6.457]
[1744743998840,12.43430312,1608.5,1608.2,3.911]
[1744743999059,12.43427966,1608.5,1608.2,3.911]
[1744743999378,6.21802169,1608.3,1608.0,6.5155]
[1744743999533,6.21778597,1608.3,1607.9,6.21903569]
[1744743999742,6.21828403,1608.2,1607.9,6.21903569]
[1744743999940,12.43679138,1608.2,1607.9,3.0]
[1744744000186,12.43679138,1608.2,1607.8,7.19102924]
[1744744000399,0.9576,1608.2,1607.8,0.9715]
[1744744000697,6.21851874,1608.1,1607.8,0.9715]
[1744744000979,12.43731795,1608.1,1607.8,0.9715]
[1744744001350,13.3941314,1608.2,1607.8,10.19102571]
[1744744001582,6.2185612,1608.1,1607.8,10.19102571]
[1744744001873,6.2185612,1608.1,1607.8,16.47276505]
[1744744002073,6.2185612,1608.1,1607.8,16.41057666]
[1744744002573,0.9576,1608.2,1607.8,0.9715]
[1744744002769,6.21908315,1608.0,1607.7,3.55]
[1744744002946,6.21908315,1608.0,1607.7,3.0]
[1744744003288,6.21942226,1607.9,1607.7,3.0]
[1744744003574,12.43995314,1607.8,1607.6,3.0]
[1744744003873,0.9448,1607.9,1607.4,0.96]
[1744744004077,6.22083981,1607.5,1607.4,0.96]
[1744744004371,6.22052979,1607.6,1607.2,11.37495589]
[1744744004574,6.22052979,1607.6,1607.3,6.2213988]
[1744744004575,6.22047103,1607.6,1607.3,6.2213988]
[1744744004774,6.22047103,1607.6,1607.2,11.3750839]
[1744744004947,12.44209521,1607.5,1607.3,0.55]
[1744744005149,6.22096816,1607.5,1607.2,5.15324378]
[1744744005349,6.22096816,1607.5,1607.2,11.37523668]
[1744744006078,6.22096816,1607.5,1607.2,11.37511834]
[1744744006869,6.22096816,1607.5,1607.2,17.59698565]
[1744744007071,12.44116966,1607.6,1607.2,17.59698565]
[1744744007242,12.44121039,1607.6,1607.2,17.59698565]
[1744744007442,6.21981466,1607.8,1607.4,10.49108477]
[1744744007655,12.43971494,1607.8,1607.5,6.28292634]
[1744744007844,6.2193444,1607.9,1607.6,6.22036258]
[1744744008249,6.21994804,1607.8,1607.5,0.9055]
[1744744008479,12.43993762,1607.8,1607.5,0.9055]
[1744744009251,6.22010465,1607.7,1607.4,4.27014378]
[1744744009684,6.22010465,1607.7,1607.4,10.49135623]
[1744744010790,6.21935839,1607.9,1607.5,6.22072249]
[1744744010986,6.21935839,1607.9,1607.6,6.22041589]
[1744744011187,0.9378,1608.1,1607.7,6.28202309]
[1744744011387,6.21870087,1608.1,1607.7,6.28202309]
[1744744011555,6.21870087,1608.1,1607.8,6.21951598]
[1744744011756,6.21870087,1608.1,1607.8,6.28170458]
[1744744012471,6.21870087,1608.1,1607.8,7.25250458]
[1744744012856,12.69921037,1608.3,1608.0,6.21876617]
[1744744013059,7.15421037,1608.3,1607.9,6.21921525]
[1744744013306,6.21865876,1608.1,1607.8,10.19034364]
[1744744013660,6.21813207,1608.2,1607.9,6.76908492]
[1744744014972,6.21813207,1608.2,1607.9,0.55]
[1744744015172,6.21774544,1608.3,1607.8,3.9708]
[1744744015589,6.21929224,1607.9,1607.6,11.45928816]
[1744744015894,6.21898485,1608.0,1607.7,6.76994173]
[1744744016995,6.21859388,1608.1,1607.8,6.28173695]
[1744744017167,12.43732545,1608.1,1607.8,6.28173695]
[1744744017367,12.43736332,1608.1,1607.8,6.28173695]
[1744744018102,6.21859388,1608.1,1607.8,12.50128496]
[1744744018298,6.21837669,1608.2,1607.9,0.9614]
[1744744018501,7.14941172,1608.4,1608.0,6.76876922]
[1744744018802,7.14941172,1608.4,1608.1,6.21823334]
[1744744018803,6.21741172,1608.4,1608.1,6.21823334]
[1744744019101,12.43492682,1608.4,1608.1,6.21823334]
[1744744019593,6.21711218,1608.5,1608.2,6.21805655]
[1744744019805,0.8929,1608.6,1608.1,6.21823334]
[1744744019971,6.21749067,1608.4,1608.1,6.21823334]
[1744744020497,12.43505856,1608.4,1608.1,6.21823334]
[1744744020667,6.21775397,1608.3,1608.1,3.0]
[1744744020869,6.21813207,1608.2,1608.0,3.0]
[1744744021064,0.9545,1608.3,1607.9,6.5054]
[1744744021298,6.21890547,1608.0,1607.8,3.55]
[1744744021511,6.21910659,1608.0,1607.7,0.9484]
[1744744022011,6.21861151,1608.1,1607.7,0.9484]
[1744744022198,6.2181968,1608.2,1607.8,6.21950028]
[1744744022386,6.2181968,1608.2,1607.8,12.43906497]
[1744744022995,6.21852931,1608.1,1607.7,7.16836864]
[1744744023200,6.2181968,1608.2,1607.8,6.21963074]
[1744744023401,6.2181968,1608.2,1607.8,12.43917387]
[1744744023595,12.43653036,1608.2,1607.8,6.21954313]
[1744744023906,12.43654829,1608.2,1607.8,12.43911563]
[1744744024278,6.21858462,1608.1,1607.7,7.16835554]
[1744744024479,6.21858462,1608.1,1607.7,13.38831719]
[1744744024784,6.21824145,1608.2,1607.9,6.21909273]
[1744744025090,12.71425289,1608.3,1608.0,6.21878709]
[1744744025275,18.93214101,1608.3,1608.0,6.21878709]
[1744744025481,6.21814177,1608.2,1607.8,6.76952384]
[1744744025932,6.21814177,1608.2,1607.9,6.21928708]
[1744744026107,6.21814177,1608.2,1607.9,12.43844194]
[1744744026306,6.21814177,1608.2,1607.9,12.43832953]
[1744744026623,12.71434015,1608.3,1607.9,6.21915486]
[1744744026828,12.71434015,1608.3,1607.8,0.55]